Workbook

Sheet ERF SRS
C5: HOSP. GNRAL DE ESPECIALIDAD DR, MARIO TOLENTINO DIPP
C6: Estado de Rendimiento Financiero
D7: Del ejercicio terminado Al 30 de Noviembre 2025
C8: (Valores en RD$)
F10: 2025 | H10: =+[1]ESF!H7 -> 2016
C11: Ingresos (Nota 17)
A12: 0035 | D12: Impuestos
A13: 0036 | D13: Ingresos por transacciones con contraprestación
A14: 0037 | D14: Transferencias | F14: =[2]Ingresos!B32 -> 12,140,790
A15: 0038 | D15: Recargos, multas y otros ingresos
C16: Total ingresos | F16: =SUM(F12:F15) -> 12,140,790 | H16: =SUM(H12:H15) -> 0
C18: Gastos (Notas 18, 19, 20, 21 y 22)
A19: 0039 | D19: Sueldos, salarios y beneficios a empleados | F19: ='[2]Total Gasto'!B12 -> 6,215,913
A20: 0040 | D20: Subvenciones y otros pagos por transferencias
A21: 0041 | D21: Suministros y materiales para consumo | F21: ='[2]Total Gasto'!B36 -> 5,044,799
A22: 0042 | D22: Gasto de depreciación y amortización | F22: ='[2]Total Gasto'!B45 -> 830,000
A23: 0043 | D23: Deterioro del valor de propiedad, planta y equipo
A24: 0044 | D24: Otros gastos(Servicios no Personales) | F24: ='[2]Total Gasto'!B25 -> 9,887,616
A25: 0045 | D25: Gastos financieros | F25: ='[2]Total Gasto'!B52 -> 45,930 | H25: =SUMIF([1]BC!B:B,[1]ERF!A22,[1]BC!G:G) -> 
C26: Total gastos | F26: =SUM(F19:F25) -> 22,024,258 | H26: =SUM(H19:H25) -> 
F27: 0
A28: 0046 | D28: Ganancia (pérdida) por diferencia cambiaria | F28: 0 | H28: 0
A30: 0047 | D30: Participación en resultado de asociadas | F30: 0 | H30: 0
C32: Resultados positivos (ahorro) / negativo (desahorro) | F32: =+F16-F26+F28+F30 -> (9,883,468) | H32: =+H16-H26+H28+H30 -> 
C34: Atribuible a:
A35: 0048 | D35: Propietarios de la entidad controladora | F35: 0 | H35: 0
A36: 0049 | D36: Intereses minoritarios | F36: 0 | H36: 0
F37: =SUM(F35:F36) -> 0 | H37: =SUM(H35:H36) -> 0

Sheet ESF SNS
C7: HOSP. GNRAL DE ESPECIALIDAD DR, MARIO TOLENTINO DIPP
C8: Estado de Situación Financiera
C9: Del ejercicio terminado al 30 de Noviembre 2025
F13: 2025 | H13: =+[1]BC!G11 -> 2016
A14: Mapeo | C14: Activos
C15: Activos corrientes
A16: 0001 | D16: Efectivo y equivalentes de efectivo (Nota 7) | F16: =[2]Efectivo!C41 -> 12,140,790
A17: 0002 | D17: Inversiones a corto plazo (Nota 8)
A18: 0003 | D18: Porción corriente de documentos por cobrar (Nota 9)
A19: 0004 | D19: Cuenta por cobrar a corto plazo (Notas 8) | F19: ='[2]Cuenta por Cobrar'!B21 -> 9,728,027
A20: 0005 | D20: Inventarios (Nota 9) | F20: =[2]Inventario!B16 -> 77,746,983
A21: 0006 | D21: Pagos anticipados (Nota 12)
A22: 0007 | D22: Otros activos corrientes (Nota 13)
C23: Total activos corrientes | F23: =SUM(F15:F22) -> 99,615,800 | H23: =SUM(H15:H22) -> 0
C25: Activos no corrientes
A26: 0008 | D26: Cuentas por cobrar a largo plazo (Notas 14) | F26: 0
A27: 0009 | D27: Documentos por cobrar (Nota 15)
A28: 0010 | D28: Inversiones a largo plazo (Nota 16)
A29: 0011 | D29: Otros activos financieros (Notas 17)
A30: 0012 | D30: Mobiliarios y equipos neto (Nota 10) | F30: ='[2]Mobiliario Eq. Ofc.'!H26 -> 168,946,923
A31: 0013 | D31: Activos intangibles (Nota 10)
A32: 0014 | D32: Otros activos no financieros (Nota 20)
C33: Total activos no corrientes | F33: =SUM(F26:F32) -> 168,946,923 | H33: =SUM(H26:H32) -> 0
C35: Total activos | F35: =F23+F33 -> 268,562,723 | H35: =SUM(H33,H23) -> 0
C37: Pasivos
C38: Pasivos corrientes
A39: 0015 | D39: Sobregiro bancario (Nota 21)
A40: 0016 | D40: Cuentas por pagar a corto plazo (Nota 11) | F40: ='[2]CXP Corto plazo'!B17 -> 305,700
A41: 0017 | D41: Préstamos a corto plazo (Nota 23)
A42: 0018 | D42: Parte corriente de préstamos a largo plazo (Nota 24)
A43: 0019 | D43: Retenciones y acumulaciones por pagar (Nota 12)
A44: 0020 | D44: Provisiones a corto plazo (Nota 26)
A45: 0021 | D45: Beneficios a empleados a corto plazo (Nota 13)
A46: 0022 | D46: Pensiones (Nota 28)
A47: 0023 | D47: Otros pasivos corrientes (Nota 29)
C48: Total pasivos corrientes | F48: =SUM(F39:F47) -> 305,700 | H48: =SUM(H39:H47) -> 0
C50: Pasivos no corrientes
A51: 0024 | D51: Cuentas por pagar a largo plazo (Nota 14) | F51: ='[2]CXP Largo Plazo'!B16 -> 1,384,254
A52: 0025 | D52: Préstamos a largo plazo (Nota 31)
A53: 0026 | D53: Instrumentos de deuda (Nota 32)
A54: 0027 | D54: Provisiones a largo plazo (Nota 33)
A55: 0028 | D55: Beneficios a empleados a largo plazo (Nota 15)
A56: 0029 | D56: Otros pasivos no corrientes (Nota 35)
C57: Total pasivos no corrientes | F57: =+F51+F55 -> 1,384,254
C58: Total pasivos | F58: =+F48+F57 -> 1,689,954 | H58: =SUM(H48,H57) -> 0
C60: Activos Netos/Patrimonio (Nota 16)
A61: 0030 | D61: Capital | F61: =[2]Patrimonio!B14 -> 266,872,768
A62: 0031 | D62: Reservas
A63: 0032 | D63: Resultados positivos (ahorro) / negativo (desahorro)
A64: 0033 | D64: Resultados acumulados
A65: 0034 | D65: Intereses minoritarios
C66: Total activos netos/patrimonio | F66: =+F61+F63+F64 -> 266,872,768
C68: Total pasivos y activos netos/patrimonio | F68: =+F58+F66 -> 268,562,723 | H68: =+H58+H66 -> 0 | J68: =+F35-F68 -> (0)
D77: Licda. Veronica pastranos | F77: Kelvin modesto Segura Herasme
D78: Encargado de Contabilidad | F78: Director Financiero

Sheet Efectivo
B6: HOSP. GNRAL DE ESPECIALIDAD DR, MARIO TOLENTINO DIPP
B7: Nota # 7: Efectivo Caja y Bancos
B8: Del ejercicio terminado Al 30 de Noviembre 2025
B9: (Valores en RD$)
A12: # Cta. | B12: Nombre de cuenta | C12: Monto
B15: Caja Chica | C15: 0
A16: 300105134 | B16: Operaciones Ex PSS
B17: Fondo Salud Ex-PSS | C17: 0
A18: 160-112014 | B18: Servicio Nacional de Salud (Fondos Senasa)
A19: 314-0000776 | B19: Fondo Operativo | C19: 0
A20: 240-020561-7 | B20: Cuenta Nueva Ranchito
A21: 314-00145-4 | B21: Fondos Especiales CDC
A22: 314-0000920-0 | B22: Cuenta VIH | C22: 0
A23: 314-000181-0 | B23: Cuenta Tuberculosis | C23: 0
B24: Venta de Servicios | C24: 12,140,789.94
B25: Cuenta Proyecto FGRSS(BID)
B26: Anticipo Financieros
B27: Cta. Nomina | C27: 0 | F27: 0
B28: Total balance cuentas de bancarias del Reservas | C28: =C18+C22+C23+C24+C25+C26+C15 -> 12,140,789.94
A31: # Cta. | B31: Tesoreria Nacional | C31: Monto
A32: 9995028000 | B32: Fondo de la Direccion Central Servicio Nacional de Salud
A33: 9995028001 | B33: Sud- Cuenta Cuota de Pago Direccion Central Servicio Nacional de Salud
A34: 2110003000 | B34: Cuenta Direccion Central SNS
A35: 9998014000 | B35: Recaudacion Establecimiento de Salud PSS
B36: Cuenta Colectora Recursos Directos PSS | C36: 0
A37: 100198000 | B37: Sud- Cuenta Disponibilidad Direccion Central Servicio Nacional de Salud
A38: 100198001 | B38: Sub-Cuota de Pago Direccion Central Servicio Nacional de Salud
B39: Total balance cuentas de bancarias tesoreria nacional | C39: 0
B41: Total efectivo y equivalentes de efectivo | C41: =+C28+C39 -> 12,140,789.94

Sheet Iventario
A6: HOSP. GNRAL DE ESPECIALIDAD DR, MARIO TOLENTINO DIPP
A7: Nota # 9: Inventario
A8: Del ejercicio terminado Al 30 de Noviembre 2025
A12: Descripción | B12: Monto
A13: Inventario de Útiles y Suministro de Oficina | B13: 19,611,872.30
A14: Inventario Medicamentos | B14: 49,059,282.93
A15: Inventario de Material Med. Quirurjicos. | B15: 9,075,828.11
A16: Total Inventario | B16: =B13+B14+B15 -> 77,746,983.34

Sheet Ingresos
A5: HOSP. GNRAL DE ESPECIALIDAD DR, MARIO TOLENTINO DIPP
A6: Nota 17: Ingresos
A7: Del ejercicio terminado Al 30 de Noviembre 2025
A8: (Valores en RD$)
A11: Ingresos con Contraprestacion de Servicios | B11: Monto
A13: Venta de Servicios | B13: 12,140,789.94
A14: Sub-Total | B14: =SUM(B13) -> 12,140,789.94
A16: Ingresos sin Contraprestacion de Servicios | B16: 0
A17: Otros Ingresos | B17: 0
A18: Operaciones Ex PSS
A19: Fondo Salud Ex-PSS
A20: Fondo Operativo
A21: Cuenta Nueva Ranchito
A22: Fondos Especiales CDC
A23: Cuenta VIH
A24: Cuenta Tuberculosis
A25: Cuenta Proyecto FGRSS(BID) | B25: 0
A26: Anticipo Financieros | B26: 0
A27: Otros Ingresos
A28: Otras Donaciones Corrientes(Medicamentos) | B28: 0
A29: Cuenta Direccion Central SNS
A30: Sud- Cuenta Disponibilidad Direccion Central Servicio Nacional de Salud
A31: Sub-Total | B31: =SUM(B17:B30) -> 0.00
A32: Total | B32: =+B14+B31 -> 12,140,789.94

Sheet CXP Corto Plazo
A6: HOSP. GNRAL DE ESPECIALIDAD DR, MARIO TOLENTINO DIPP
A7: Nota # 11: Cuentas por Pagar a Corto Plazo
A8: Del ejercicio terminado Al 30 de Noviembre 2025
A9: (Valores en RD$)
A13: Detalle | B13: Monto
A14: Fondos en Consignacion a Pagar | B14: 0
A15: Transferencia sector Publico por Pagar | B15: 0
A16: Cuentas por Pagar Suplidores | B16: 305,700.24
A17: Total Cuentas Por Pagar a Corto Plazo | B17: 305,700.24

Sheet CXC Cuenta por cobrar
A5: HOSP. GNRAL DE ESPECIALIDAD DR, MARIO TOLENTINO DIPP
A6: Notas # 8: Cuenta Por Cobrar
A7: Del ejercicio terminado Al 30 de Noviembre 2025
A8: (Valores en RD$)
A12: Detalle | B12: Monto
A15: Cuentas Por Cobrar Colaboradores
A16: Otras Cuentas Por Cobrar (Retencion IR-3)
A17: Cuentas por Cobrar Hospital Mario Tolentino Dipp
A18: Cuentas por Cobrar Proyecto FGBRSS
A19: Cuentas por Cobrar Ventas de Servicios | B19: 9,728,026.98
A20: Anticipos financieros | B20: 0
A21: Total Cuentas Por Cobrar | B21: =B15+B16+B18+B19+B20+B17 -> 9,728,026.98

Sheet CXP Largo Plazo
A6: HOSP. GNRAL DE ESPECIALIDAD DR, MARIO TOLENTINO DIPP
A7: Nota #14: Cuentas por Pagar Largo Plazo
A8: Del ejercicio terminado Al 30 de Noviembre 2025
A9: (Valores en RD$)
A13: Detalle | B13: Monto
A14: Cuentas por Pagar Largo Plazo | B14: 1,384,254.20
A16: Total Cuentas Por Pagar a Largo Plazo | B16: 1,384,254
A38: Licda: veronica pastranos peña Kelvin Modesto Segura
A39: Encargado de Contabilidad | B39: Director Financiero

Sheet Ingreso y Egreso
A4: HOSP. GNRAL DE ESPECIALIDAD DR, MARIO TOLENTINO DIPP
A5: Nota # 17: Ingreso y Egreso
A6: Del ejercicio terminado Al 31 de Noviembre 2025
A7: Para el periodo terminado el 30 de Noviembre de 2025 la composición de los ingresos es como sigue:
A9: Detalle | B9: 2025
A10: Al 31 de enero 2023 y 2022 la composición de los ingresos es como sigue:
A12: Detalle
A14: Ingresos Fondo 100 (Para Serv. Personales) | B14: 69,746,109.00
A15: Ingresos Fondo 100 (Para Serv. Objectales.) | B15: 433,333.00
A16: Ingresos por Servicios cafeteria. | B16: 40,000.00
A17: Ingresos por Servicios a extrajero | B17: 166,425.00
A18: Ingresos por Odontologia. | B18: 151,137.00
A19: Ingresos por Servicios ARS | B19: 11,783,227.94
A21: Total Ingresos | B21: =SUM(B14:B20) -> 82,320,231.94
A26: Sueldos, Salarios y beneficios a colaboradores (Nota 12)
A28: La composición de los saldos al 30 de Noviembre del 2025 es como sigue:
A31: Detalle | B31: 2025
A33: Sueldos Fijos | B33: 37,386,054.20
A34: Sueldo Personal Temporero | B34: 1,484,678.89
A35: Sueldo Personal Retroactivo
A36: Contribuciones a la Seguridad Social | B36: 957,944.99
A38: Contribuciones al Seguro de Riesgo Laboral | B38: 1,014,688.17
A39: Pensiones y Jubilaciones | B39: =+#REF! -> 
A40: Total sueldos, salarios y beneficios a empleados | B40: =B33+B34+B36+B37+B38 -> 40,843,366.25
A45: Suministro y Materiales para consumo (Nota 13)
A47: Detalle | B47: 2025
A49: pagos a suplidores | B49: 23,466,301.80
A50: Total Suministros y materiales para consumo
A51: Total Egreso | B51: =B40+B50 -> $40,843,366.25
A54: Sueldos, Salarios y beneficios a colaboradores (Nota 12)
A56: Ingreso por servicio de las ARS (Nota 12)
A59: Suministro y Materiales para consumo (Nota 13)
A69: Licda. Veronica pastranos
A70: Encargado de Contabilidad | B70: Kelvin modesto Segura Herasme
B71: Director Financiero

Sheet DEUDA DE NOVIEMBRE 2025
B1: Deuda del Hospital G. de Especialidades Dr. Mario Tolentino Dipp mes de noviembre 2025
B4: NOMBRE DE OFERETES | C4: DESCRIPCION | D4: ITEBIS 18% | E4: COMPROBANTE G | F4: FECHA DE FACT | G4: MONTO FACTURADO
A5: 1 | B5: SOLUCIONES CORPORATIVAS | C5: SERVICION DE ASIENTO PARA USO EN HOSPITAL | D5: $9,938.88 | E5: B1500000403 | F5: 2025-03-11 | G5: $65,154.88
A6: 2 | B6: SOLUCIONES CORPORATIVAS | C6: SERVICION DE ASIENTO PARA USO EN HOSPITAL | D6: $37,107.00 | E6: B1500000402 | F6: 2025-03-11 | G6: $243,257.00
A7: 3 | B7: OBELCA | C7: ADQUISICION DE CABLE PARA SENSORES DE OXIMETRO | D7: $74,822.02 | E7: B1500000990 | F7: 2025-03-11 | G7: $490,499.92
A8: 4 | B8: PROVECAR | C8: SERVICIO DE MANTENIMIENTO DE MANEJADORAS DE ESTE HOSPITAL | D8: $14,669.90 | E8: B1500000313 | F8: 2025-03-11 | G8: $96,166.66
A9: 5 | B9: PROMESE-CAL | C9: ADQUISICION DE MEDICAMENTOS PARA USO EN EL HOSPITAL | E9: B1500049242 | F9: 29/10/2025 | G9: $708,882.64
A10: 6 | B10: PROMESE-CAL | C10: ADQUISICION DE MEDICAMENTOS PARA USO EN EL HOSPITAL | E10: B1500048555 | F10: 2025-03-10 | G10: $55,176.00
A11: 7 | B11: PROMESE-CAL | C11: ADQUISICION DE MEDICAMENTOS PARA USO EN EL HOSPITAL | E11: B1500048556 | F11: 2025-03-10 | G11: $196,776.00
A12: 8 | B12: PROMESE-CAL | C12: ADQUISICION DE MEDICAMENTOS PARA USO EN EL HOSPITAL | E12: B1500048554 | F12: 2025-03-10 | G12: $369,409.00
A13: 9 | B13: PROMESE-CAL | C13: ADQUISICION DE MEDICAMENTOS PARA USO EN EL HOSPITAL | E13: B1500048558 | F13: 2025-03-10 | G13: $3,527,303.06
A14: 10 | B14: REFRIASU | C14: SERVICIO DE MANTENIMIENTO DE PLATA TRATAMIENTO DE HOSPITAL | D14: $118,983.23 | E14: B1500000331 | F14: 2025-03-11 | G14: $780,001.17
A15: 11 | B15: MEDINA BRAND Y ASOCIADOS SRL | C15: ADQUISICION DE CARNES DE POLLO PARA USO EN EL HOSPITAL | E15: B1500000010 | F15: 2025-03-11 | G15: $110,600.00
A16: 12 | B16: B-NETWORK LMB, SRL | C16: ADQUISICION DE SWICH DE DISTRIBUCION/CORE | D16: $257,801.40 | E16: B1500000030 | F16: 2025-03-11 | G16: $1,690,031.40
A17: 13 | B17: CARU- TRADE SRL | C17: ADQUISICION DE ESCRITORIO, SILLA, ARCHIVO, PARA USO EN EL HOSPITAL | D17: $115,626.60 | E17: B1500000003 | F17: 2025-03-11 | G17: $757,996.60
A18: 14 | B18: CARU- TRADE SRL | C18: ADQUISICION DE PRODUCTO DE LIMPIEZA PARA USO EN EL HOSPITAL | D18: $63,284.40 | E18: B1500000004 | F18: 2025-03-11 | G18: $414,864.40
A19: 15 | B19: DUMAS MEDICAL S.R.L | C19: ADQUISICIO DE MEDICAMENTO PARA USO HOSPITAL | E19: B1500000050 | F19: 2025-03-11 | G19: $242,400.00
A20: 16 | B20: HOSPITRONICA | C20: SERVICIO DE AUTOCLAVE DEL AREA DE EMERGENCIA DE ESTE HOSPITAL | D20: $24,300.00 | E20: B1500000172 | F20: 2025-03-11 | G20: $159,300.00
A21: 17 | B21: TROPIGA DOMINICANA | C21: ADQUISICION DE GLP PARA USO EN EL HOSPITAL | E21: E450000002056 | F21: 2025-03-11 | G21: $92,540.00
A22: 18 | B22: SECOND HAND IMPORTA LEAN S.RL | C22: ADQUISICION DE ALIMENTOS DE DESPENSA PARA USO EN EL HOSPITAL | D22: $12,876.48 | E22: B1500000050 | F22: 2025-04-11 | G22: $287,475.48
A23: 19 | B23: DUMAS MEDICAL S.R.L | C23: ADQUISICION DE MEDICAMENTOS PARA USO EN EL HOSPITAL | E23: B1500000051 | F23: 2025-04-11 | G23: $245,220.00
A24: 20 | B24: FUMIGACIONES FUMIDEX SRL | C24: SERVICIOS DE FUMIGACION Y CONTROL DE PLAGAS PARA USO EN EL HOSPITAL | D24: $17,064.00 | E24: B1500000124 | F24: 2025-03-11 | G24: $111,864.00
A25: 21 | B25: DOOSPHAMA, SRL | C25: ADQUISICION DE MEDICAMENTOS PARA USO EN EL HOSPITAL | E25: B1500000183 | F25: 2025-04-11 | G25: $238,236.00
A26: 22 | B26: VALKAMED SRL | C26: ADQUISICION DE MEDICAMENTOS PARA USO EN EL HOSPITAL | E26: E450000000094 | F26: 2025-03-11 | G26: $243,930.00
A27: 23 | B27: DOOSPHAMA, SRL | C27: ADQUISICION DE MEDICAMENTOS PARA USO EN EL HOSPITAL | D27: $35,640.00 | E27: B1500000182 | F27: 2025-03-11 | G27: $233,640.00
A28: 24 | B28: VALKAMED SRL | C28: ADQUISICION DE MEDICAMENTOS PARA USO EN EL HOSPITAL | E28: E450000000095 | F28: 2025-04-11 | G28: $245,867.20
A29: 25 | B29: RAMISOL | C29: ADQUISICION DE MEDICAMENTOS PARA USO EN EL HOSPITAL | D29: $37,710.00 | E29: E450000000344 | F29: 2025-04-11 | G29: $247,210.00
A30: 26 | B30: ALAT SALUD SRL | C30: ADQUISICION DE MEDICAMENTOS PARA USO EN EL HOSPITAL | E30: B1500000824 | F30: 2025-04-11 | G30: $246,400.00
A31: 27 | B31: MASTER CLEAN | C31: ADQUISICION DE FUNDAS PLASTICA DESECHABLES PARA USO EN EL HOSPITLA | D31: $132,721.20 | E31: B1500000649 | F31: 2025-04-11 | G31: $870,061.20
A32: 52 | B32: CIENTEC | C32: ADQUISICION DE INSUMOS MEDICOS PARA LABORATORIO DEL HOSPITAL | D32: $72,723.60 | E32: B1500008051 | F32: 14/10/2025 | G32: $6,020,181.60
A33: 29 | B33: PRODUCTOS TECN. E INDUSTRIALES | C33: ADQUISICION DE PRODUCTO DE LIMPIEZA PARA USO EN EL HOSPITAL | D33: $4,671.00 | E33: B1500000120 | F33: 2025-03-11 | G33: $30,621.00
A34: 30 | B34: DECAL ENTERPRISES | C34: ADQUISICION DE ALFOMBRAS CON LOGOTIPO DEL HOSPITAL | D34: $37,692.00 | E34: B1500000003 | F34: 2025-04-11 | G34: $247,092.00
A35: 31 | B35: PROVECAR | C35: ADQUISICION DE PLAFONES ACUANTICO PARA EL HOSPITAL | D35: $57,060.00 | E35: B1500000315 | F35: 2025-04-11 | G35: $374,060.00
A36: 32 | B36: DACAL ENTEPRISES | C36: SERVICION DE REPARACION DE PUESTA EN EL HOSPITAL | D36: $35,847.54 | E36: B1500000001 | F36: 2025-01-11 | G36: $235,000.54
A37: 33 | B37: DISTRIBUIDORA BASULTO, EIRL | C37: ADQUISICION DE MEDICAMENTOS PARA USO EN EL HOSPITAL | E37: B1500000306 | F37: 2025-05-11 | G37: $240,000.00
A38: 34 | B38: MORAMI, SRL | C38: ADQUISICION DE MEDICAMENTOS PARA USO EN EL HOSPITAL | D38: $37,372.32 | E38: E450000000255 | F38: 2025-04-11 | G38: $244,996.32
A39: 35 | B39: UVRO SOLUCIONES EMPRESARIALES | C39: SERVICION DE TRANSPORTE DE CAMION PARA USO EN EL HOSPITAL | E39: B1500000512 | F39: 2025-04-11 | G39: $21,000.00
A40: 36 | B40: ALAT SALUD SRL | C40: ADQUISICION DE MEDICAMENTOS PARA USO EN EL HOSPITAL | D40: $18,691.20 | E40: B1500000826 | F40: 2025-05-11 | G40: $206,881.30
A41: 37 | B41: BIONUCLEAR | C41: ADQUISICION DE LABPLUS SISTEMA GESTION LAB CLINICO PARA USO EN EL HOSPITAL | E41: E450000008761 | F41: 27/10/2025 | G41: $300,000.00
A42: 38 | B42: CAPELLAN DENTAL | C42: ADQUISICION DE MEDICAMENTO PARA ODOCTOLOGIA PARA USO EN EL HOSPITAL | D42: $44,028.00 | E42: B1500002646 | F42: 2025-02-10 | G42: $288,628.00
A43: 39 | B43: CAPELLAN DENTAL | C43: ADQUISICIO DE MEDICAMENTOS PARA EL AREA DE ODOCTOLOGIA PARA USO EN EL HOSPITAL | D43: $24,144.55 | E43: B1500002645 | F43: 2025-02-10 | G43: $233,356.66
A44: 40 | B44: TROPIGAS DOMINICANO | C44: ADQUISICION DE GLP GAS PARA USO EN EL HOSPITAL | E44: E450000002056 | F44: 2025-03-11 | G44: $92,540.00
A45: 41 | B45: HOSPITRONICA | C45: SERVICION DE INSTALACION PARA SONOGRAFO EN GE PARA USO EN EL HOSPITAL | D45: $17,100.00 | E45: B1500000174 | F45: 2025-06-11 | G45: $112,100.00
A46: 42 | B46: SECOND HAND IMPORTA LEAN SLR | C46: ADQUISICION DE SAL YORDADA PARA USO DE PORTABILIZACION DEL HOSPITAL | D46: $66,420.00 | E46: B1500000051 | F46: 2025-06-11 | G46: $435,420.00
A47: 43 | B47: TU AMIGO, SRL | C47: ADQUISICION DE GASOIL REGULA PARA USO EN EL HOSPITAL | E47: B1500000318 | F47: 2025-03-11 | G47: $796,400.00
A48: 44 | B48: RANTORO | C48: ADQUISICION DE VIVERES PARA USO DE ESTE HOSPITAL | E48: B1500000006 | F48: 2025-07-11 | G48: $247,250.00
A49: 45 | B49: XAVSHA | C49: ADQUISICION DE ALIMENTOS DE DESPENSA PARA USO EN EL HOSPITAL | D49: $5,658.11 | E49: E450000000078 | F49: 2025-07-11 | G49: $47,879.54
A50: 46 | B50: YAXIS | C50: ADQUISICION DE ALIMENTOS DE DESPENSA PARA USO EN EL HOSPITAL | D50: $5,183.94 | E50: B1500000560 | F50: 2025-07-11 | G50: $37,583.58
A51: 47 | B51: PROSERMEDINT, SRL | C51: ADQUISION DE ALIMENTOS PARA USO EN EL HOSPITAL | E51: B1500000011 | F51: 2025-07-11 | G51: $168,100.00
A52: 48 | B52: FARMADAL | C52: ADQUISICION DE PRODUCTO DE LIMPIEZA PARA USO EN EL HOSPITAL | E52: E450000000065 | F52: 2025-07-11 | G52: $149,388.00
A53: 49 | B53: OBELCA | C53: ADQUISICION DE FAJAS INDUSTRIALES , GUANTES, BOTAS CAPAS IMPERMEABLES PARA USO EN EL HOSPITAL | D53: $14,976.00 | E53: B1500000998 | F53: 2025-07-11 | G53: $98,176.00
A54: 50 | B54: OBELCA | C54: ADQUISICION DE CAJAS PLASTICA Y DE CARTON PARA ALMACENAMIENTOS PARA USO DEL HOSPITAL | D54: $6,075.00 | E54: B1500000999 | F54: 2025-07-11 | G54: $39,825.00
A55: 51 | B55: ROPHARMA | C55: ADQUISICION DE MEDICAMENTOS PARA USO EN EL HOSPITAL | E55: B1500001476 | F55: 2025-04-11 | G55: $1,182,000.00
A56: 52 | B56: GREEMEX, S.R.L | C56: ADQUISICION DE RESMA DE PAPEL PARA USO EN EL HOSPITAL | D56: $36,367.20 | E56: B150000028 | F56: 2025-11-11 | G56: $238,407.20
A57: 53 | B57: GRUPO IRMACELI SERVICES, SRL | C57: ADQUISICION DE RECETARIO MEDICOS IMPRESOS 4.5X5 PAQUETES PARA USO EN EL HOSPITAL | D57: $36,000.00 | E57: B1500000294 | F57: 2025-11-11 | G57: $236,000.00
A58: 54 | B58: GRUPO CAR-M | C58: ADQUISICION DE MEDICAMENTOS PARA USO EN EL HOSPITAL | E58: E450000000446 | F58: 2025-11-11 | G58: $231,000.00
A59: 55 | B59: HOSPITRONICA, SRL | C59: SERVICIO DE ELECTROCAUTERIOS PARA ESTE HOSPITAL | D59: $16,650.00 | E59: B1500000177 | F59: 2025-12-11 | G59: $109,150.00
A60: 56 | B60: HOSPITRONICA, SRL | C60: ADQUISICION DE BATERIA VENTILADOR PARA USO EN EL HOSPITAL | D60: $30,843.00 | E60: B1500000178 | F60: 13/11/2025 | G60: $202,193.00
A61: 57 | B61: ABRIAS NOVO GROUP S.R.L | C61: SERVICION DE DECORACION NAVIDEÑA PEN EL HOSPITAL | D61: $36,618.30 | E61: B1500000169 | F61: 2025-05-11 | G61: $240,053.30
A62: 58 | B62: SAVEV (servicion generales) | C62: SERVICION DE MANTENIMEINTO ANUAL DE CALDERA DE VAPOR DE ESTE HOSPITAL | D62: $99,222.48 | E62: B15000000142 | F62: 13/11/2025 | G62: $650,458.48
A63: 59 | B63: PLANETA AZUL | C63: ADQUISICION DE LLENADO DE BOTELLONES DE AGUA EN EL HOSPITAL | E63: E450000020701 | F63: 2025-08-11 | G63: $2,730.00
A64: 60 | B64: PLANETA AZUL | C64: ADQUISICION DE LLENADO DE BOTELLONES DE AGUA EN EL HOSPITAL | E64: E450000020704 | F64: 13/11/2025 | G64: $3,710.00
A65: 61 | B65: DOOSPHARMA | C65: ADQUISICION DE MEDICAMENTOS PARA USO EN EL HOSPITAL | D65: $36,817.20 | E65: B1500000187 | F65: 13/11/2025 | G65: $241,357.20
A66: 62 | B66: VALKAMED SRL | C66: ADQUISICION DE MEDICAMENTOS PARA USO EN EL HOSPITAL | E66: E450000000106 | F66: 13/11/2025 | G66: $243,930.00
A67: 63 | B67: ALAT SALUD SRL | C67: ADQUISICION DE MEDICAMENTOS PARA USO EN EL HOSPITAL | E67: B1500000837 | F67: 14/11/2025 | G67: $246,400.00
A68: 64 | B68: MODO CREATIVO | C68: SERVICION DE CORREO INSTITUCIONAL PARA USO EN EL HOSPITAL | D68: $35,100.00 | E68: B1500000107 | F68: 14/11/2025 | G68: $230,100.00
A69: 65 | B69: PROMESE-CAL | C69: ADQUICISION DE MEDICAMENTOS PARA USO EN EL HOSPITAL | E69: B1500049147 | F69: 27/10/2025 | G69: $282,090.00
A70: 66 | B70: PROMESE-CAL | C70: ADQUICISION DE MEDICAMENTOS PARA USO EN EL HOSPITAL | E70: B1500049149 | F70: 27/10/2025 | G70: $130,200.00
A71: 67 | B71: LINEXI INSUMOSS MEDICOS S.R.L | C71: ADQUISICION DE MEDICAMENTOS PARA USO EN EL HOSPITAL | E71: B1500000035 | F71: 13/11/2025 | G71: $130,000.00
A72: 68 | B72: SEAN DOMINICANA | C72: ADQUISICION DE MEDICAMENTOS PARA USO EN EL HOSPITAL | E72: E450000000305 | F72: 14/11/2025 | G72: $238,400.00
A73: 69 | B73: TROPIGAS DOMINICANO | C73: ADQUISICION DE GLP PARA USO EN EL HOSPITAL | E73: E450000002058 | F73: 14/11/2025 | G73: $194,194.38
A74: 70 | B74: AIR LIQUEDE | C74: ADQUISICION DE OXIGENOS PARA USO EN EL HOSPITAL | D74: $257,589.31 | E74: E450000003690 | F74: 30/11/2025 | G74: $1,688,641.05
A75: 71 | B75: TONER DEPOT MULTISERVICIOS EORG, SRL | D75: $41,452.85 | E75: E450000000490 | F75: 14/11/2025 | G75: $271,745.45
F76: TOTAL DEL MES | G76: =SUM(G5:G75) -> $30,629,502.21
B82: Licda: veronica pastranos peña | D82: Kelvinn modesto segura
B83: Encargado de Contabilidad | D83: Director Financiero

Sheet PAGOS DEL MES DE NOVIEMBRE-2025
A9: HOSPITAL GENERAL DE ESPECIALIDADES MARIO TOLENTINO DIPP
A10: RELACION DE LIBRAMIENTO EN PROCESO EN EL HOSPITAL DR. MARIO TOLENTINO DIPP 2025
A13: LIBRAMIENTO | B13: NO. | C13: NOMBRE DE OFERENTES | D13: DESCRIPCION | E13: NO. ORDEN DE COMPRA | F13: FONDO | G13: FECHA FACTURA | H13: COMPROBANTE GUBERNAMENTAL | I13: ITEBIS 18% | J13: MONTO FACTURA PENDIENTE RD$
A14: 2566 | B14: 1 | C14: SOLUCORP | D14: ADQUISICION DE REPARACION | E14: HDMTD-DAF-CM-2025-0099 | F14: 121 | G14: 2025-10-07 | H14: B1500000397 | I14: $7,380.00 | J14: $48,380.00
A15: 2587 | B15: 2 | C15: PRODUCTOS MEDICINALES | D15: ADQUISICION DE INSUMOS PARA LABORATORIO DE ESTE HOSPITAL | E15: HDMTD-DAF-CM-2025-0124 | F15: 121 | G15: 2025-10-03 | H15: B1500001514 | I15: $3,549.60 | J15: $97,509.60
A16: 2591 | B16: 3 | C16: PROVECAR,SRL | D16: ADQUISICION DE SERVICIO DE MANTENIMIENTO DE MANEJADORAS FAN COIL Y REJILLAS DEL AIRE ACONDIC. | E16: HDMTD-DAF-CM-2025-0118 | F16: 121 | G16: 2025-10-13 | H16: B1500000312 | I16: $14,669.49 | J16: $96,166.66
A17: 2595 | B17: 4 | C17: ROJA Y SERRANO | D17: ADQUISICION DE FOLDER | E17: HDMTD-DAF-CD-2025-0185 | F17: 121 | G17: 2025-10-09 | H17: B1500001463 | I17: $8,958.06 | J17: $58,725.06
A18: 2604 | B18: 5 | C18: LABORATORIO CLINICO PATRIA RIVAS | D18: ADQUISICION SERVICIO DE CULTIVO PARA UCI | E18: HDMTD-DAF-CD-2025-0102 | F18: 121 | G18: 2025-10-07 | H18: E450000000144 | J18: $39,721.00
A19: 2612 | B19: 6 | C19: PRODUCTOS TECNOLOGICOS E INDUSTRIALES JARDIN DEL EDEN | D19: ADQUISICION DE PRODUCTPOS DE LAVANDERIA | E19: HDMTD-DAF-CM-2025-0127 | F19: 121 | G19: 2025-10-13 | H19: B1500000113 | I19: $18,540.00 | J19: $121,540.00
A20: 2612 | B20: 7 | C20: PRODUCTOS TECNOLOGICOS E INDUSTRIALES JARDIN DEL EDEN | D20: ADQUISICION DE PRODUCTPOS DE LAVANDERIA | E20: HDMTD-DAF-CM-2025-0127 | F20: 121 | G20: 2025-10-20 | H20: B1500000117 | I20: $11,601.00 | J20: $76,051.00
A21: 2616 | B21: 8 | C21: SUPLIMADE COMERCIAL, SRL | D21: ADQUISICION DE COMESTIBLES Y JUGOS | E21: HDMTD-DAF-CM-2024-0065 | F21: 121 | G21: 2025-10-14 | H21: B1500001501 | I21: $5,082.00 | J21: $36,844.50
A22: 2675 | B22: 9 | C22: VICANA AGROFINANCIERA,SRL | D22: ADQUISICION DE VIVERES | E22: HDMTD-DAF-CD-2025-0086 | F22: 121 | G22: 2025-10-08 | H22: B15000000119 | J22: $145,184.00
A23: 2677 | B23: 10 | C23: FUMIDEX, SRL | D23: CONTRATACION SERVICIO DE DESINFECCION Y FUMIGACION PARA EL CONTROL DE PLAGAS EN TODAS LAS AREAS | E23: HDMTD-DAF-CM-2025-0119 | F23: 121 | G23: 2025-10-07 | H23: B1500000120 | I23: $8,532.00 | J23: $55,932.00
A24: 2678 | B24: 11 | C24: AQUATEAM DOMINICANA,SRL | D24: ADQUISICION DE SERVICIO MANTENIMIENTO PARA SISTEMA DE POTABILIZACION Y PURIFICACION DE AGUA POTABLE | E24: HDMTD-DAF-CM-2024-0073 | F24: 121 | G24: 2025-10-01 | H24: E450000000007 | I24: $9,450.00 | J24: $61,950.00
A25: 2679 | B25: 12 | C25: REFRIASU LOGISTIC AND CONSTRCTION | D25: ADQUISICION DE SERVICIO DE REPARACION DE SINCRONIZADOR | E25: HDMTD-DAF-CM-2025-0109 | F25: 102 | G25: 2025-10-15 | H25: B1500000329 | I25: $144,000.00 | J25: $944,000.00
A26: 2680 | B26: 13 | C26: BIO NUCLEAR, SA | D26: ADQUISICION DE INSUMOS PARA USO DEL LABORARTORIO | E26: HDMTD-DAF-CM-2025-0124 | F26: 102 | G26: 2025-10-01 | H26: E450000008289 | I26: $3,109.77 | J26: $128,980.27
A27: 2681 | B27: 14 | C27: OBELCA,SRL | D27: ADQUISICION DE BRAZALETRES PARA ADULTOS | E27: HDMTD-DAF-CD-2025-0181 | F27: 121 | G27: 2025-10-07 | H27: B1500000974 | I27: $5,994.00 | J27: $39,294.00
A28: 2685 | B28: 15 | C28: INCREASE,SRL | D28: ADQUISICION SOLICITUD SERVICIO DE SERIGRFIADO DE SABANAS, CUBRE COLCHONES, CORTINAS CUBRE ALMOHADAS | E28: HDMTD-DAF-CD-2025-0169 | F28: 121 | G28: 2025-10-14 | H28: B1500000034 | I28: $17,280.00 | J28: $113,280.00
A29: 2686 | B29: 16 | C29: LUZ ESTHER BATISTA PEREZ | D29: ADQUISICION DE PLATOS DESECHABLES Y BOWN SANCOCHERO | E29: HDMTD-DAF-CD-2025-0163 | F29: 102 | G29: 2025-08-12 | H29: B1500001300 | I29: $9,523.40 | J29: $224,752.24
A30: 2700 | B30: 17 | C30: HOSPITAL GENERAL DE ESPECIALIDADES DR. MARIO TOLENTINO | D30: PAGO INCENTIVO | E30: N/A | F30: 102 | G30: 2025-11-05 | H30: NOMINA | J30: $5,497,635.09
A31: 2704 | B31: 18 | C31: CARU-TRADE S.R.L | D31: ADQUISCION DE SILLAS, ESCRITORIOS Y ARCHIVOS | E31: HDMTD-DAF-CD-2025-0117 | F31: 426 | G31: 2025-11-03 | H31: B1500000003 | I31: $115,626.60 | J31: $757,996.60
A32: 2708 | B32: 19 | C32: MEDINA BRAND & ASOCIADOS,SRL | D32: ADQUISICION DE CARNES | E32: HDMTD-DAF-CM-2025-0087 | F32: 121 | G32: 2025-11-03 | H32: B1500000010 | J32: $110,600.00
A33: 2716 | B33: 20 | C33: PROVECAR,SRL | D33: ADQUISICION DE SERVICIO DE MANTENIMIENTO DE MANEJADORAS FAN COIL Y REJILLAS DEL AIRE ACONDIC. | E33: HDMTD-DAF-CM-2025-0118 | F33: 121 | G33: 2025-11-03 | H33: B1500000313 | I33: $14,669.49 | J33: $96,166.66
A34: 2720 | B34: 21 | C34: ALAT SALUD, SRL | D34: ADQUISICION DE CEFEPIME | E34: HDMTD-DAF-CD-2025-0193 | F34: 121 | G34: 2025-11-04 | H34: B1500000824 | J34: $246,400.00
A35: 2724 | B35: 22 | C35: DECAL ENTERPRISES,SRL | D35: ADQUISICION DE REPARACION DE TODAS LAS PUERTAS | E35: HDMTD-DAF-CD-2025-0174 | F35: 121 | G35: 2025-11-01 | H35: B15000000001 | I35: $35,847.54 | J35: $235,000.34
A36: 2728 | B36: 23 | C36: HOSPITRONICA SRL | D36: SERVICIO DE REPARACION DE AUTOCLAVE | E36: HDMTD-DAF-CD-2025-0199 | F36: 121 | G36: 2025-11-03 | H36: B1500000172 | I36: $24,300.00 | J36: $159,300.00
A37: 2736 | B37: 24 | C37: SOLUCORP,SRL | D37: AQUISICION DE SILLA PARA TOMA DE MESTRA Y ESCALON PLASTICOS | E37: HDMTD-DAF-CD-2025-0197 | F37: 102 | G37: 2025-11-03 | H37: B1500000403 | I37: $9,525.60 | J37: $65,154.88
A38: 2745 | B38: 25 | C38: SOLUCIONES CORPORATIVAS, SOLUCORP SRL | D38: SERVICIOS DE REPARACION Y MANTENIMIENTO DE ELEVADORES DEL HOSPITAL | E38: HDMTD-DAF-CM-2025-0099 | F38: 121 | G38: 3/112025 | H38: B1500000401 | I38: $7,380.00 | J38: $48,380.00
A39: 2749 | B39: 26 | C39: UVRO SOLUCIONES EMPRESARIALES,SRL | D39: ADQUISICION DE ALQUILER DE TRANSPORTE PARA EL REIRO DE MEDICAMENTOS E INSUMOS MEDICOS A PROMESE/CAL Y KM13 | E39: HDMTD-DAF-CD-2025-0105 | F39: 121 | G39: 2025-11-04 | H39: B1500000512 | J39: $21,000.00
A40: 2753 | B40: 27 | C40: FUMIGACIONES, FUMIDEX,SRL | D40: ADQUISICION DE CONTRATACION SERVICIO DE DESINFECCION Y FUMIGACION | E40: HDMTD-DAF-CD-2025-0119 | F40: 121 | G40: 2025-11-03 | H40: B1500000124 | I40: $17,064.00 | J40: $111,864.00
A41: 2757 | B41: 28 | C41: RANTORO,SRL | D41: ADQUISICION DE VIVERES PARA USO DE ESTE HOSPITAL | E41: HDMTD-DAF-CD-2025-0161 | F41: 121 | G41: 2025-11-07 | H41: B1500000006 | J41: $247,250.00
A42: 2763 | B42: 29 | C42: AQUATEAM DOMINICANA,SRL | D42: SERVICIO MANTENIMIENTO DE POTAABILIZACION | E42: HDMTD-DAF-CM-2024-0073 | F42: 121 | G42: 2025-10-01 | H42: E450000000008 | I42: $9,450.00 | J42: $61,950.00
A43: 2770 | B43: 30 | C43: CIENCIA TECNOLOGIA Y CONSULTAS,SRL | D43: ADQUISICION DE SOLUCIONES, CONTROLES, CALIBRADORAS Y MAGLUMI PARA MAQUINA MINDRAY | E43: HDMTD-CCC-PEX-2025-0010 | F43: 121 | G43: 2025-10-14 | H43: B1500008051 | I43: $72,723.60 | J43: $6,020,181.60
A44: 2776 | B44: 31 | C44: TROPIGAS DOMINICANA | D44: ADQUISICION DE SERVICIO DEL LLENADO DE DOS TANQUES GLP | E44: HDMTD-DAF-CD-20250006- | F44: 121 | G44: 2025-11-16 | H44: E450000003587 | J44: $136,180.53
A45: 2776 | B45: 32 | C45: TROPIGAS DOMINICANA | D45: ADQUISICION DE SERVICIO DEL LLENADO DE DOS TANQUES GLP | E45: HDMTD-DAF-CD-2025-0006 | F45: 121 | G45: 2025-10-02 | H45: E450000005505 | J45: $171,860.00
A46: 2782 | B46: 33 | C46: VAL-KAMED PHARMA,SRL | D46: ADQUISICION DE BROMURO DE IPATROPIO | E46: HDMTD-DAF-CD-2025-0190 | F46: 121 | G46: 2025-11-03 | H46: E450000000094 | J46: $243,930.00
A47: 2786 | B47: 34 | C47: DUMAS MEDICAL, SRL | D47: ADQUISION DE LABETALOL | E47: HDMTD-DAF-CD-2025-0192 | F47: 121 | G47: 2025-11-03 | H47: B1500000050 | J47: $242,400.00
A48: 2790 | B48: 35 | C48: TONER DEPOT MULTISERVICIOS EORG,SRL | D48: ADQUISICION SERVICIOS DE MANTENIMIENTO, RENTA E INSTALACION DE IMPRESORAS MULTIFUNCIONALESMONOCROMATICAS MEDIANO CON MODALIDAD DE EXPANSION | E48: HDMTD-DAF-CD-2025-0123 | F48: 121 | G48: 2025-10-14 | H48: E450000000409 | I48: $34,650.00 | J48: $227,150.00
A49: 2797 | B49: 36 | C49: OBELCA | D49: ADQUISICION DE CABLE | E49: HDMTD-DAF-CM-2025-0132 | F49: 121 | G49: 2025-11-03 | H49: B1500000990 | I49: $74,822.02 | J49: $490,499.92
A50: 2801 | B50: 37 | C50: DUMAS MEDICAL, SRL | D50: ADQUISICION DE MEROPENEN | E50: HDMTD-DAF-CD-2025-0175 | F50: 121 | G50: 2025-10-03 | H50: B1500000021 | J50: $223,840.00
A51: 2805 | B51: 38 | C51: DUMAS MEDICAL, SRL | D51: ADQUISICION DE BROMURO DE IPATROPIO | E51: HDMTD-DAF-CD-2025-0202 | F51: 121 | G51: 2025-11-04 | H51: B1500000051 | J51: $245,220.00
A52: 2809 | B52: 39 | C52: DISTRIBUIDORA BASULTO | D52: ADQUISICION DE MIDAZOLAM | E52: HDMTD-DAF-CD-2025-0183 | F52: 121 | G52: 2025-11-05 | H52: B1500000306 | J52: $240,000.00
A53: 2813 | B53: 40 | C53: DOOSPHARMA,SRL | D53: ADQUISICION DE NIFEDINA DE 10MG,20MG Y SUCRALFATO GRANULADO | E53: HDMTD-DAF-CD-2025-0203 | F53: 121 | G53: 2025-11-04 | H53: B1500000183 | J53: $238,236.00
A54: 2817 | B54: 41 | C54: ALAT SALUD, SRL | D54: ADQUISICION DE INSUMOS | E54: HDMTD-DAF-CD-2025-0206 | F54: 121 | G54: 2025-11-05 | H54: B1500000826 | I54: $18,691.20 | J54: $206,881.30
A55: 2822 | B55: 42 | C55: PRODUCTOS TECNOLOGICOS E INDUSTRIALES JARDIN DEL EDEN | D55: ADQUISICION DE PRODUCTOS DE LAVANDERIA | E55: HDMTD-DAF-CD-2025-0127 | F55: 121 | G55: 2025-11-03 | H55: B1500000120 | I55: $4,671.00 | J55: $30,621.00
A56: 2834 | B56: 43 | C56: PROSERMEDINT,SRL | D56: ADQUISICION DE FRUTAS | E56: HDMTD-DAF-CD-2025-0162 | F56: 121 | G56: 2025-11-07 | H56: B1500000011 | J56: $168,100.00
A57: 2840 | B57: 44 | C57: HOSPITRONICA SRL | D57: ADQUISCION DE SERVICIO DE REPARACION MONITOR DE SONOGRAFIA | E57: HDTMTD DAF-CD-2025-0188 | F57: 121 | G57: 2025-11-06 | H57: B1500000174 | I57: $17,100.00 | J57: $112,100.00
A58: 2846 | B58: 45 | C58: XAVSHA MULTISERVICES,SRL | D58: ADQUISICION DE ALIMENTOS DE COCINA | E58: HDMTD-DAF-CM-2025-0137 | F58: 121 | G58: 07/11/205 | H58: E450000000078 | I58: $5,658.14 | J58: $47,879.54
A59: 2850 | B59: 46 | C59: YAXIS COMERCIAL | D59: ADQUISICION DE ALIMENTOS DE COCINA | E59: HDMTD-DAF-CM-2025-0137 | F59: 121 | G59: 2025-11-07 | H59: B1500000560 | J59: $37,583.58
A60: 2856 | B60: 47 | C60: COMPAÑÍA DOMINICANA DE TELEFONOS C POR A | D60: ADQUISICION DE SERVICIOS DE TELECOMUNICACIONES | F60: 121 | G60: 2025-11-13 | H60: E450000095722 | I60: $15,481.15 | J60: $110,042.23
A61: 2860 | B61: 48 | C61: REFRIASU LOGISTIC AND CONSTRCTION | D61: SERVICIO DE MANTENIMIENTO PARA PLANTA. | E61: HDMTD-DAF-CM-2025-0128 | F61: 121 | G61: 2025-11-03 | H61: B1500000331 | I61: $33,050.00 | J61: $780,001.17
A62: 2864 | B62: 49 | C62: AIR LIQUEDE DOMINICANA, SAS | D62: ADQUISICION DE OXIGENO PARA EL HOSPITAL | E62: HDMTD-DAF-CM-2025-0131 | F62: 121 | G62: 2025-10-30 | H62: E450000003690 | J62: $1,688,641.05
A63: 2869 | B63: 50 | C63: OBELCA,SRL | D63: ADQUISICION DE CAJAS PLASTICAS Y DE CARTON PARA USO DEL HOSPITAL | E63: HDMTD-DAF-CD-2025-0209 | F63: 121 | G63: 2025-11-07 | H63: B1500000999 | I63: $6,075.00 | J63: $39,825.00
A64: 2873 | B64: 51 | C64: HOSPITRONICA SRL | D64: ADQUISICION DE SERVICIO DE REPARACION DE NEBULIZADOR, EGG Y SONOGRAFO | E64: HDMTD-DAF-CD-2025-0216 | F64: 121 | G64: 2025-11-13 | H64: B1500000187 | I64: $30,843.00 | J64: $202,193.00
A65: 2877 | B65: 52 | C65: GRUPO FARMACEUTICA CAR-M, SRL | D65: ADQUISICION DE PIPERACILINA+ TAZOBACTAM | E65: HDMTD-DAF-CD-2025-0218 | F65: 121 | G65: 2025-11-11 | H65: E450000000446 | J65: $231,000.00
A66: 2889 | B66: 53 | C66: BIO NOVA,SRL | D66: ADQUISICION DE INSUMOS | E66: HDMTD-DAF-CD-2025-0124 | F66: 121 | G66: 2025-10-03 | H66: B15000018032 | I66: $7,930.98 | J66: $824,052.98
A67: 2905 | B67: 54 | C67: ALIANZA INNOVACION DE SERVICIOS | D67: SERVICIO DE RECODIDA DE DESECHO BIOLOGICOS | E67: HDMTD-DAF-CM-2025-0082 | F67: 121 | G67: 2025-09-02 | H67: B1500002237 | J67: $150,000.00
A68: 2905 | B68: 55 | C68: ALIANZA INNOVACION DE SERVICIOS | D68: SERVICIO DE RECODIDA DE DESECHO BIOLOGICOS | E68: HDMTD-DAF-CM-2025-0082 | F68: 121 | G68: 2025-10-08 | H68: E450000000020 | J68: $150,000.00
A69: 2916 | B69: 56 | C69: ALAT SALUD, SRL | D69: ADQUISICION DE CEFEPIME | E69: HDMTD-DAF-CD-2025-0223 | F69: 121 | G69: 2025-11-14 | H69: B15000080837 | J69: $246,400.00
A70: 2928 | B70: 57 | C70: PLANETA AZUL | D70: ADQUISCION DE AGUA | E70: HDMTD-DAF-CD-2025-0119 | F70: 121 | G70: 2025-09-01 | H70: E450000018467 | J70: $4,500.00
A71: 2928 | B71: 58 | C71: PLANETA AZUL | D71: ADQUISCION DE AGUA | E71: HDMTD-DAF-CD-2025-0119 | F71: 121 | G71: 2025-09-19 | H71: E450000018478 | J71: $3,750.00
A72: 2928 | B72: 59 | C72: PLANETA AZUL | D72: ADQUISCION DE AGUA | E72: HDMTD-DAF-CD-2025-0119 | F72: 121 | G72: 2025-09-19 | H72: E450000018492 | J72: $3,000.00
A73: 2928 | B73: 60 | C73: PLANETA AZUL | D73: ADQUISCION DE AGUA | E73: HDMTD-DAF-CD-2025-0119 | F73: 121 | G73: 2025-09-25 | H73: E450000018495 | J73: $3,225.00
F74: TOTAL RD$ | J74: =SUM(J14:J73) -> $23,466,301.80
C81: Licda: veronica pastranos | H81: Kelvin modesto Segura Herasme
C82: Encargado de Contabilidad | H82: Director Financiero
